{"text_format":"3","workbook":"xlsx","n_sheets":3,"sheets":["Consignes","Données de la demande","Bilan des bois"],"not_rendered":{"images":1,"defined_names":5},"read":"whole","date_system":"1900"}

{"sheet":"Consignes","index":0,"n_rows":44,"n_cols":3,"rows_kept":44,"merged":[[5,0,5,8],[6,0,6,8],[7,0,7,8],[8,1,8,8],[9,1,9,8],[10,1,10,8],[11,0,11,8],[12,1,12,8],[13,1,13,8],[14,1,14,8],[15,1,15,8],[16,1,16,8],[17,2,17,8],[18,2,18,8],[19,2,19,8],[20,2,20,8],[21,1,21,8],[22,1,22,8],[23,0,23,8],[25,0,25,8],[26,0,26,8],[27,1,27,8],[28,1,28,8],[29,1,29,8],[30,0,30,8],[31,0,31,8],[33,0,33,8],[34,1,34,8],[36,0,36,8]]}
["Valable dès le 01.06.2023"]
["Informations pour la dépose de demande"]
["Labellisation d'objets avec le Label Bois Suisse"]
[]
[]
["Nous vous remercions, au nom de l'économie de la forêt et du bois suisse, de labelliser un objet avec le Label Bois Suisse, et ainsi soutenir la filière du bois indigène."]
["La labellisation d’objet repose sur l’actuelle version du « Règlement Label Bois Suisse » et de ses directives d’application, Chiffre 6, Art. 25-28. Les membres des six catégories de membres ainsi que les maîtres d'ouvrage ont la possibilité de demander des labellisations d'objets."]
["Possibilités de labellisation:"]
["-","Ensemble de l’ouvrage avec au minimum 60% de bois suisse certifié. Par ensemble de l’ouvrage, on entend la totalité des parties de construction déterminantes selon le Code des frais de construction (CFC). Ce sont tous les produits en bois et dérivés du bois mis en œuvre qui constituent le 100%."]
["-","Grande partie d’ouvrage: sont considérées comme telles, la totalité de la structure porteuse, de même qu’un assortiment constitué d’au moins trois parties d’ouvrage individuelles, p. ex. façades + toiture + cloisons intérieures. Les conditions sont identiques que pour l’ensemble de l’ouvrage."]
["-","Parties d’ouvrage individuelles telles que structures de toiture, structures de plafonds, structures de sols, structures de parois extérieures, façades, structures de cloisons intérieures, modules, escaliers, fenêtres, portes intérieures et extérieures, parquets et revêtements de sols, cuisines, meubles, armoires encastrées, autres aménagements intérieurs etc. :  chaque partie d’ouvrage labellisée se compose d'au moins 80% de bois suisse certifié. "]
["Les demandes de labellisation d‘objets doivent être constituées des documents sous forme numérique suivants : "]
["-","Formulaire de demande: fournir les informations demandées dans l‘onglet « Données » de ce fichier Excel "]
["-","Bilan des bois selon l’onglet du même nom de ce fichier Excel\nTous les produits en bois mis en œuvre pour l'objet ou l’/les élément/s de construction à labelliser doivent être saisis ici. La seule exception concerne les éventuels matériaux isolants à base de bois qui peuvent être exclus du bilan des bois afin que ces produits soient traités de la même manière que les autres matériaux isolants et ne soient pas pénalisés. Si ces matériaux isolants portent le Label Bois Suisse, ils peuvent être inscrits au bilan à titre facultatif."]
[null,"Le bilan des bois est complété et signé par l’entreprise de construction bois ou le bureau d’architectes ou d’ingénieurs."]
[null,"Si des bois et matériaux dérivés du bois de masse volumique similaires sont mis au bilan, il est possible de choisir la méthode de calcul par pourcentage de volume. Dans ce cas, les colonnes F et G du bilan des bois ne sont pas à considérer et peuvent être masquées. Pour les bilans contenant des matériaux avec plus de deux masses volumiques différentes, la méthode de calcul selon le pourcentage de poids sera prise en compte (colonne G). Si la masse volumique d'un matériau n'est pas connue ou n'est pas indiquée par le fournisseur, il est possible d’utiliser les valeurs indicatives figurant au bas de la feuille de calcul."]
["-","Justificatifs : en complément du bilan des bois, sont également à joindre à la demande les justificatifs attestant que les produits mentionnés comme \"labellisés\" dans le bilan des bois soient bel et bien porteurs du Label Bois Suisse. S'appliquent à cet effet les consignes suivantes:"]
[null,"-","Les justificatifs à fournir sont des factures ou des bons de livraison des fournisseurs sur lesquels les produits labellisés sont déclarés conformément au règlement."]
[null,"-","Si l'entreprise de construction bois ayant réalisé l’objet et chargée du bilan des bois est membre du Label Bois Suisse, le formulaire « Confirmation d’origine des fournisseurs pour la labellisation d’objets avec le Label Bois Suisse » peut être complété et remis par chaque fournisseur en alternative aux factures/bons de livraison."]
[null,"-","Si l'entreprise de construction bois ayant réalisé l’objet et chargée du bilan des bois est certifiée pour l’ensemble de sa production ou pour une ligne de production (avec un bilan quantitatif annuel >80% de produits labellisés), aucun justificatif spécifique n'est nécessaire."]
[null,"-","Les justificatifs doivent être numérotés et lesdits numéros de justificatif inscrits aux parties d’ouvrages correspondantes du bilan des bois."]
["-","Plans, photos et/ou descriptif de l'objet à labelliser."]
["-","Confirmation d’une production intermédiaire à l'étranger : si des produits labellisés avec une production intermédiaire à l'étranger figurent au bilan bois, l'autorisation écrite du bureau Marketing Bois Suisse de ces produits doit être jointe à la demande."]
["Sont considérés comme « bois suisse labellisé »; le bois scié, le bois lamellé-collé, les produits de rabotage et autres produits semi-finis ainsi que les matériaux à base de bois et autres produits qui ont été déclarés comme tels, conformément au règlement,  par les fournisseurs sur les factures et les bulletins de livraison. Les pourcentages exigés doivent être atteints avec du \"bois suisse labellisé\", une simple déclaration de provenance \"bois suisse\" n’est pas suffisante."]
[]
["Tous les documents, y compris le bilan au format Excel, doivent être envoyés sous forme numérique par e-mail au bureau Marketing Bois Suisse. Les formulaires nécessitant une signature sont à scanner."]
["Aussitôt la demande de labellisation contrôlée et validée par le bureau Marketing Bois Suisse, l’objet peut être associé au Label Bois Suisse. A cet effet les éléments et prestations de communication suivants sont disponibles:"]
["-","Certificat (imprimé et/ou PDF) avec les indications suivantes : Désignation de l'objet, lieu de l’objet, parties labellisées (ensemble de l'objet ou liste des parties de l’ouvrage labellisées), part de bois utilisé avec le Label Bois Suisse, en pourcentage et/ou en mètres cubes, date."]
["-","Plaquette d’ouvrage en plexiglas se référant au certificat "]
["-","Publication sur la page internet « objets-bois.org » :  la mise en ligne est à effectuer par le requérant. Une rubrique y est spécialement dédiée aux objets en bois suisse."]
["Pour les ouvrages de grande ampleur (lotissements, hôtels/restaurants, administrations, etc.), les bâtiments publics (gymnases, écoles, jardins d'enfants, etc.) et les objets présentant un intérêt médiatique (tours panoramiques, gares ferroviaires, etc.), la collaboration avec le bureau de la propriétaire de la marque et du label, et avec la Communauté d’Action Régionale de Lignum concernée, est souhaitée. Dans le cadre d'une manifestation appropriée (p. ex. inauguration ou ouverture), la labellisation est remise au maître d'ouvrage au nom d'une association, de Lignum ou de la Communauté d’Action Régionale concernée. "]
["Seuls les membres du label peuvent utiliser le Label Bois Suisse pour leur propre communication (art. 24 du règlement). Cela s’applique également aux labellisations d’objets. Les maîtres d'ouvrage privés et publics peuvent toutefois faire référence à la labellisation d'objet dans leur communication."]
[]
["Coûts :"]
[null,"Les labellisations d'objets sont gratuites pour les membres du label (certificat et plaquette inclus) ; les frais de port et d'emballage sont facturés en sus. Pour les maîtres d'ouvrages requérants non membres du label, le forfait pour les coûts de contrôle supplémentaires induits s'élève à 600 CHF."]
[]
["Des documents complémentaires, les formulaires, le règlement du Label Bois Suisse et les directives d’application en vigueur, sont disponible en ligne sous l’onglet « Téléchargements » du site www.holz-bois-legno.ch."]
["L'équipe de Marketing Bois Suisse se tient à votre disposition pour toute question complémentaire:"]
[null,"Marketing Bois Suisse"]
[null,"c/o LIGNUM Economie suisse du bois"]
[null,"Chemin de Budron H6"]
[null,"1052 Le Mont-sur-Lausanne"]
[null,"Mail: info@holz-bois-legno.ch"]
[null,"Tél: 021 652 62 22"]

{"sheet":"Données de la demande","index":1,"n_rows":77,"n_cols":4,"rows_kept":77,"merged":[[3,1,3,2],[3,3,3,4],[4,1,4,2],[5,1,5,2],[6,1,6,2],[7,1,7,2],[11,1,11,2],[12,1,12,2],[13,1,13,2],[14,1,14,2],[15,1,15,2],[22,1,22,2],[23,1,23,2],[24,1,24,2],[25,1,25,2],[26,1,26,2],[30,1,30,2],[31,1,31,2],[32,1,32,2],[33,1,33,2],[37,1,37,2],[38,1,38,2],[39,1,39,2],[40,1,40,2],[44,1,44,2],[45,1,45,2],[46,1,46,2],[47,1,47,2],[48,1,48,2],[51,1,51,2],[54,1,54,2],[57,1,57,2],[58,1,58,2],[59,1,59,2],[60,1,60,2],[61,1,61,2],[63,0,63,5],[65,1,65,2],[71,0,71,5]]}
["Valable dès le 01.06.2023"]
["Demande de labellisation d'objet avec le Label Bois Suisse"]
["Objet"]
["Dénomination de l'objet"]
["Adresse"]
["NPA, lieu"]
["Canton"]
["Année de réalisation"]
[null,"Note: Ces données seront reprises telles quelles  sur le certificat. "]
[]
["Requérant de la demande de labellisation d'objet"]
["Nom / Entreprise / Organisation"]
["Personne de contact"]
["Adresse"]
["NPA, lieu"]
["Mail / Tél."]
["Membre du label / No ","Sélectionner","Lignum-xx-xxxx"]
[null,"Seuls les membres du label et les maîtres d'ouvrage peuvent demander des labellisations d'objets."]
[null,"La plaque et le certificat sont envoyés au requérant. "]
[null,"Coûts pour les maîtres d'ouvrage requérants non membres du label: 600.- CHF"]
[]
["Maître de l'ouvrage"]
["Nom / Entreprise / Organisation"]
["Personne de contact"]
["Adresse"]
["NPA, lieu"]
["Mail / Tél."]
["Membre du label / No ","Sélectionner","Lignum-xx-xxxx"]
[]
["Répondant pour le bilan des bois"]
["Entreprise"]
["Personne de contact"]
["NPA, lieu"]
["Mail / Tél."]
["Membre du label / No ","Sélectionner","Lignum-xx-xxxx"]
[]
["Entreprise de construction bois chargée de l'exécution"]
["Entreprise"]
["Personne de contact"]
["NPA, lieu"]
["Mail / Tél."]
["Membre du label / No ","Sélectionner","Lignum-xx-xxxx"]
[]
["Autres parties prenantes du projet",null,null,"Membre du label?"]
["Charpentier, menuisier",null,null,"Sélectionner"]
["Ingénieur bois",null,null,"Sélectionner"]
["Architecte",null,null,"Sélectionner"]
["Autres entreprises",null,null,"Sélectionner"]
[{"$nulls":3},"Sélectionner"]
[]
["Avec le dépôt de cette demande de labellisation d'objet nous souhaitons le Label Bois Suisse pour:"]
[null,"Sélectionner "]
[]
["Méthode de calcul du bilan des bois:"]
[null,"Sélectionner"]
[]
["Nous souhaitons pour cet objet:"]
["Un certificat sous forme:","Sélectionner"]
["Date du document",null,null,"p. ex. date de la remise du certificat"]
["Plaquette à fixer sur l'objet","Sélectionner"]
["Mise en ligne sur holz-objekt.org","Sélectionner",null,"Coût: CHF 50.- HT"]
["Soutien à la communication","Sélectionner"]
[]
["Le/la soussigné/e confirme la véracité et l'exhaustivité des présentes données. Il/elle accepte que les éventuels frais supplémentaires liés à des données érronnées seront supportés par la personne ou l'entreprise requérante.  "]
[]
["Lieu, date"]
["Timbre et signature"]
[]
[]
[]
[]
["Cette demande, accompagnée des documents suivants (cf. règlement et directives d’application), doit être adressée au bureau de Marketing Bois Suisse."]
[null,"Bilan des bois (signé/scanné et au format Excel)"]
[null,{"$f":"IF(B35=\"oui\",\"Justificatifs des produits labellisés (factures/bons de livraison ou formulaire ad hoc signé)\",\"Justificatifs des produits labellisés (factures/bons de livraison)\")","v":"Justificatifs des produits labellisés (factures/bons de livraison)"}]
[null,"Plans, images ou description de l'objet"]
[null,"En cas de production intermédiaire à l'étranger, compléments selon règlement"]
[null,"."]

{"sheet":"Bilan des bois","index":2,"n_rows":115,"n_cols":12,"rows_kept":115,"merged":[[1,0,1,7],[7,3,8,8],[11,3,11,4],[14,3,14,4],[15,3,15,4],[16,3,16,4],[17,3,17,4],[18,3,18,4],[21,3,21,4],[22,3,22,4],[23,3,23,4],[24,3,24,4],[25,3,25,4],[28,3,28,4],[29,3,29,4],[30,3,30,4],[31,3,31,4],[32,3,32,4],[35,3,35,4],[36,3,36,4],[37,3,37,4],[38,3,38,4],[39,3,39,4],[42,3,42,4],[43,3,43,4],[44,3,44,4],[45,3,45,4],[46,3,46,4],[49,3,49,4],[50,3,50,4],[51,3,51,4],[54,3,54,4],[55,3,55,4],[56,3,56,4],[59,3,59,4],[60,3,60,4],[61,3,61,4],[64,3,64,4],[65,3,65,4],[66,3,66,4],[69,3,69,4],[70,3,70,4],[71,3,71,4],[74,3,74,4],[75,3,75,4],[76,3,76,4],[79,3,79,4],[80,3,80,4],[81,3,81,4],[84,3,84,4],[85,3,85,4],[86,3,86,4],[89,3,89,4],[90,3,90,4],[91,3,91,4],[94,3,94,4],[95,3,95,4],[96,3,96,4],[98,3,98,4],[98,5,98,6],[101,0,102,7],[101,9,109,11],[104,1,104,2],[107,6,107,7],[108,6,108,7],[109,6,109,7],[110,6,110,7],[111,6,111,7],[112,6,112,7],[113,6,113,7],[113,9,113,10],[114,6,114,7]]}
["Valable dès le 01.06.2023"]
["Bilan des bois pour une labellisation d'objet avec le Label Bois Suisse"]
["Objet",{"$f":"IF('Données de la demande'!B4=\"\",\"\",'Données de la demande'!B4)","v":""}]
["Maître de l'ouvrage",{"$f":"IF('Données de la demande'!B23=\"\",\"\",'Données de la demande'!B23)","v":""}]
["Répondant du bilan",{"$f":"IF('Données de la demande'!B31=\"\",\"\",'Données de la demande'!B31)","v":""},null,"Notes concernant la possibilité d'afficher ou masquer des cellules:"]
["Pers. de contact",{"$f":"IF('Données de la demande'!B32=\"\",\"\",'Données de la demande'!B32)","v":""},null,"- Les champs des parties d'ouvrage peuvent être affichés ou masqués avec (+) ou (-)."]
["Mail / Tél.",{"$f":"IF('Données de la demande'!B34=\"\",\"\",'Données de la demande'!B34)","v":""},null,"- Avant d'imprimer ou de générer le PDF, masquer les parties d'ouvrage non utilisées."]
[{"$nulls":3},"- Si les masses volumiques sont partout identiques, masquer les colonnes F et G"]
["Label pour",{"$f":"IF('Données de la demande'!B52=\"bitte auswählen\",\"\",'Données de la demande'!B52)","v":"Sélectionner "}]
["Méthode",{"$f":"IF('Données de la demande'!B55=\"bitte auswählen\",\"\",'Données de la demande'!B55)","v":"Sélectionner"}]
[]
["Parties d'ouvrage","Produits\n[p. ex. . BLC, bois de construction, OSB,…]","Quantité\n[m³]","Bois labellisé suisse?\n[oui/non]",null,"Masse volumique\n[kg/m³]","Poids\n[to]","Fabriquant/fournisseur/No de membre\n[Nom de l'entreprise/Lieu/Lignum-xx-xxxx]","Justificatif no","Contrôle \n[auditeur]","Remarques\n[auditeur]","Validation\n[OK]"]
[]
["Structures de toitures",null,{"$f":"SUM(C15:C19)","v":{"v":0,"d":"0.00 m³"}},{"$f":"SUMIF(D15:D19,\"oui\",C15:C19)","v":{"v":0,"d":"0.00 m³"}},{"$f":"IF(C14=0,0,D14/C14)","v":{"v":0,"d":"0.0%"}},{"$f":"(C15*F15+C16*F16+C17*F17+C18*F18+C19*F19)/1000","v":0},{"$f":"IF(F14=0,0,(SUMIF(D15:D19,\"oui\",G15:G19))/(F14))","v":{"v":0,"d":"0.0%"}}]
[{"$nulls":3},"sélectionner ",null,{"v":460,"d":"460 kg/m³"},{"$f":"C15*F15/1000","v":{"v":0,"d":"0.0 t"}}]
[{"$nulls":3},"sélectionner ",null,{"v":460,"d":"460 kg/m³"},{"$f":"C16*F16/1000","v":{"v":0,"d":"0.0 t"}}]
[{"$nulls":3},"sélectionner ",null,{"v":460,"d":"460 kg/m³"},{"$f":"C17*F17/1000","v":{"v":0,"d":"0.0 t"}}]
[{"$nulls":3},"sélectionner ",null,{"v":460,"d":"460 kg/m³"},{"$f":"C18*F18/1000","v":{"v":0,"d":"0.0 t"}}]
[{"$nulls":3},"sélectionner ",null,{"v":460,"d":"460 kg/m³"},{"$f":"C19*F19/1000","v":{"v":0,"d":"0.0 t"}}]
[{"$nulls":6},{"$f":"SUM(G15:G19)","v":{"v":0,"d":"0.0"}}]
["Structures de plafonds",null,{"$f":"SUM(C22:C26)","v":{"v":0,"d":"0.00 m³"}},{"$f":"SUMIF(D22:D26,\"oui\",C22:C26)","v":{"v":0,"d":"0.00 m³"}},{"$f":"IF(C21=0,0,D21/C21)","v":{"v":0,"d":"0.0%"}},{"$f":"(C22*F22+C23*F23+C24*F24+C25*F25+C26*F26)/1000","v":0},{"$f":"IF(F21=0,0,(SUMIF(D22:D26,\"oui\",G22:G26))/(F21))","v":{"v":0,"d":"0.0%"}}]
[{"$nulls":3},"sélectionner ",null,{"v":460,"d":"460 kg/m³"},{"$f":"C22*F22/1000","v":{"v":0,"d":"0.0 t"}}]
[{"$nulls":3},"sélectionner ",null,{"v":460,"d":"460 kg/m³"},{"$f":"C23*F23/1000","v":{"v":0,"d":"0.0 t"}}]
[{"$nulls":3},"sélectionner ",null,{"v":460,"d":"460 kg/m³"},{"$f":"C24*F24/1000","v":{"v":0,"d":"0.0 t"}}]
[{"$nulls":3},"sélectionner ",null,{"v":460,"d":"460 kg/m³"},{"$f":"C25*F25/1000","v":{"v":0,"d":"0.0 t"}}]
[{"$nulls":3},"sélectionner ",null,{"v":460,"d":"460 kg/m³"},{"$f":"C26*F26/1000","v":{"v":0,"d":"0.0 t"}}]
[{"$nulls":6},{"$f":"SUM(G22:G26)","v":{"v":0,"d":"0.0"}}]
["Structures de sols",null,{"$f":"SUM(C29:C33)","v":{"v":0,"d":"0.00 m³"}},{"$f":"SUMIF(D29:D33,\"oui\",C29:C33)","v":{"v":0,"d":"0.00 m³"}},{"$f":"IF(C28=0,0,D28/C28)","v":{"v":0,"d":"0.0%"}},{"$f":"(C29*F29+C30*F30+C31*F31+C32*F32+C33*F33)/1000","v":0},{"$f":"IF(F28=0,0,(SUMIF(D29:D33,\"oui\",G29:G33))/(F28))","v":{"v":0,"d":"0.0%"}}]
[{"$nulls":3},"sélectionner ",null,{"v":460,"d":"460 kg/m³"},{"$f":"C29*F29/1000","v":{"v":0,"d":"0.0 t"}}]
[{"$nulls":3},"sélectionner ",null,{"v":460,"d":"460 kg/m³"},{"$f":"C30*F30/1000","v":{"v":0,"d":"0.0 t"}}]
[{"$nulls":3},"sélectionner ",null,{"v":460,"d":"460 kg/m³"},{"$f":"C31*F31/1000","v":{"v":0,"d":"0.0 t"}}]
[{"$nulls":3},"sélectionner ",null,{"v":460,"d":"460 kg/m³"},{"$f":"C32*F32/1000","v":{"v":0,"d":"0.0 t"}}]
[{"$nulls":3},"sélectionner ",null,{"v":460,"d":"460 kg/m³"},{"$f":"C33*F33/1000","v":{"v":0,"d":"0.0 t"}}]
[{"$nulls":6},{"$f":"SUM(G50:G52)","v":{"v":0,"d":"0.0"}}]
["Structures de parois extérieures",null,{"$f":"SUM(C36:C40)","v":{"v":0,"d":"0.00 m³"}},{"$f":"SUMIF(D36:D40,\"oui\",C36:C40)","v":{"v":0,"d":"0.00 m³"}},{"$f":"IF(C35=0,0,D35/C35)","v":{"v":0,"d":"0.0%"}},{"$f":"(C36*F36+C37*F37+C38*F38+C39*F39+C40*F40)/1000","v":0},{"$f":"IF(F35=0,0,(SUMIF(D36:D40,\"oui\",G36:G40))/(F35))","v":{"v":0,"d":"0.0%"}}]
[{"$nulls":3},"sélectionner ",null,{"v":460,"d":"460 kg/m³"},{"$f":"C36*F36/1000","v":{"v":0,"d":"0.0 t"}}]
[{"$nulls":3},"sélectionner ",null,{"v":460,"d":"460 kg/m³"},{"$f":"C37*F37/1000","v":{"v":0,"d":"0.0 t"}}]
[{"$nulls":3},"sélectionner ",null,{"v":460,"d":"460 kg/m³"},{"$f":"C38*F38/1000","v":{"v":0,"d":"0.0 t"}}]
[{"$nulls":3},"sélectionner ",null,{"v":460,"d":"460 kg/m³"},{"$f":"C39*F39/1000","v":{"v":0,"d":"0.0 t"}}]
[{"$nulls":3},"sélectionner ",null,{"v":460,"d":"460 kg/m³"},{"$f":"C40*F40/1000","v":{"v":0,"d":"0.0 t"}}]
[{"$nulls":6},{"$f":"SUM(G29:G33)","v":{"v":0,"d":"0.0"}}]
["Structures de cloisons intérieures",null,{"$f":"SUM(C43:C47)","v":{"v":0,"d":"0.00 m³"}},{"$f":"SUMIF(D43:D47,\"oui\",C43:C47)","v":{"v":0,"d":"0.00 m³"}},{"$f":"IF(C42=0,0,D42/C42)","v":{"v":0,"d":"0.0%"}},{"$f":"(C43*F43+C44*F44+C45*F45+C46*F46+C47*F47)/1000","v":0},{"$f":"IF(F42=0,0,(SUMIF(D43:D47,\"oui\",G43:G47))/(F42))","v":{"v":0,"d":"0.0%"}}]
[{"$nulls":3},"sélectionner ",null,{"v":460,"d":"460 kg/m³"},{"$f":"C43*F43/1000","v":{"v":0,"d":"0.0 t"}}]
[{"$nulls":3},"sélectionner ",null,{"v":460,"d":"460 kg/m³"},{"$f":"C44*F44/1000","v":{"v":0,"d":"0.0 t"}}]
[{"$nulls":3},"sélectionner ",null,{"v":460,"d":"460 kg/m³"},{"$f":"C45*F45/1000","v":{"v":0,"d":"0.0 t"}}]
[{"$nulls":3},"sélectionner ",null,{"v":460,"d":"460 kg/m³"},{"$f":"C46*F46/1000","v":{"v":0,"d":"0.0 t"}}]
[{"$nulls":3},"sélectionner ",null,{"v":460,"d":"460 kg/m³"},{"$f":"C47*F47/1000","v":{"v":0,"d":"0.0 t"}}]
[{"$nulls":6},{"$f":"SUM(G43:G47)","v":{"v":0,"d":"0.0"}}]
["Façades",null,{"$f":"SUM(C50:C52)","v":{"v":0,"d":"0.00 m³"}},{"$f":"SUMIF(D50:D52,\"oui\",C50:C52)","v":{"v":0,"d":"0.00 m³"}},{"$f":"IF(C49=0,0,D49/C49)","v":{"v":0,"d":"0.0%"}},{"$f":"(C50*F50+C51*F51+C52*F52)/1000","v":0},{"$f":"IF(F49=0,0,(SUMIF(D50:D52,\"oui\",G50:G52))/(F49))","v":{"v":0,"d":"0.0%"}}]
[{"$nulls":3},"sélectionner ",null,{"v":460,"d":"460 kg/m³"},{"$f":"C50*F50/1000","v":{"v":0,"d":"0.0 t"}}]
[{"$nulls":3},"sélectionner ",null,{"v":460,"d":"460 kg/m³"},{"$f":"C51*F51/1000","v":{"v":0,"d":"0.0 t"}}]
[{"$nulls":3},"sélectionner ",null,{"v":460,"d":"460 kg/m³"},{"$f":"C52*F52/1000","v":{"v":0,"d":"0.0 t"}}]
[{"$nulls":6},{"$f":"SUM(G50:G52)","v":{"v":0,"d":"0.0"}}]
["Escalier(s)",null,{"$f":"SUM(C55:C57)","v":{"v":0,"d":"0.00 m³"}},{"$f":"SUMIF(D55:D57,\"oui\",C55:C57)","v":{"v":0,"d":"0.00 m³"}},{"$f":"IF(C54=0,0,D54/C54)","v":{"v":0,"d":"0.0%"}},{"$f":"(C55*F55+C56*F56+C57*F57)/1000","v":0},{"$f":"IF(F54=0,0,(SUMIF(D55:D57,\"oui\",G55:G57))/(F54))","v":{"v":0,"d":"0.0%"}}]
[{"$nulls":3},"sélectionner ",null,{"v":460,"d":"460 kg/m³"},{"$f":"C55*F55/1000","v":{"v":0,"d":"0.0 t"}}]
[{"$nulls":3},"sélectionner ",null,{"v":460,"d":"460 kg/m³"},{"$f":"C56*F56/1000","v":{"v":0,"d":"0.0 t"}}]
[{"$nulls":3},"sélectionner ",null,{"v":460,"d":"460 kg/m³"},{"$f":"C57*F57/1000","v":{"v":0,"d":"0.0 t"}}]
[{"$nulls":6},{"$f":"SUM(G55:G57)","v":{"v":0,"d":"0.0"}}]
["Fenêtre",null,{"$f":"SUM(C60:C62)","v":{"v":0,"d":"0.00 m³"}},{"$f":"SUMIF(D60:D62,\"oui\",C60:C62)","v":{"v":0,"d":"0.00 m³"}},{"$f":"IF(C59=0,0,D59/C59)","v":{"v":0,"d":"0.0%"}},{"$f":"(C60*F60+C61*F61+C62*F62)/1000","v":0},{"$f":"IF(F59=0,0,(SUMIF(D60:D62,\"oui\",G60:G62))/(F59))","v":{"v":0,"d":"0.0%"}}]
[{"$nulls":3},"sélectionner ",null,{"v":460,"d":"460 kg/m³"},{"$f":"C60*F60/1000","v":{"v":0,"d":"0.0 t"}}]
[{"$nulls":3},"sélectionner ",null,{"v":460,"d":"460 kg/m³"},{"$f":"C61*F61/1000","v":{"v":0,"d":"0.0 t"}}]
[{"$nulls":3},"sélectionner ",null,{"v":460,"d":"460 kg/m³"},{"$f":"C62*F62/1000","v":{"v":0,"d":"0.0 t"}}]
[{"$nulls":6},{"$f":"SUM(G55:G57)","v":{"v":0,"d":"0.0"}}]
["Portes int. / ext. ",null,{"$f":"SUM(C65:C67)","v":{"v":0,"d":"0.00 m³"}},{"$f":"SUMIF(D65:D67,\"oui\",C65:C67)","v":{"v":0,"d":"0.00 m³"}},{"$f":"IF(C64=0,0,D64/C64)","v":{"v":0,"d":"0.0%"}},{"$f":"(C65*F65+C66*F66+C67*F67)/1000","v":0},{"$f":"IF(F64=0,0,(SUMIF(D65:D67,\"oui\",G65:G67))/(F64))","v":{"v":0,"d":"0.0%"}}]
[{"$nulls":3},"sélectionner ",null,{"v":460,"d":"460 kg/m³"},{"$f":"C65*F65/1000","v":{"v":0,"d":"0.0 t"}}]
[{"$nulls":3},"sélectionner ",null,{"v":460,"d":"460 kg/m³"},{"$f":"C66*F66/1000","v":{"v":0,"d":"0.0 t"}}]
[{"$nulls":3},"sélectionner ",null,{"v":460,"d":"460 kg/m³"},{"$f":"C67*F67/1000","v":{"v":0,"d":"0.0 t"}}]
[{"$nulls":6},{"$f":"SUM(G60:G62)","v":{"v":0,"d":"0.0"}}]
["Parquets / revêtements de sol",null,{"$f":"SUM(C70:C72)","v":{"v":0,"d":"0.00 m³"}},{"$f":"SUMIF(D70:D72,\"oui\",C70:C72)","v":{"v":0,"d":"0.00 m³"}},{"$f":"IF(C69=0,0,D69/C69)","v":{"v":0,"d":"0.0%"}},{"$f":"(C70*F70+C71*F71+C72*F72)/1000","v":0},{"$f":"IF(F69=0,0,(SUMIF(D70:D72,\"oui\",G70:G72))/(F69))","v":{"v":0,"d":"0.0%"}}]
[{"$nulls":3},"sélectionner ",null,{"v":460,"d":"460 kg/m³"},{"$f":"C70*F70/1000","v":{"v":0,"d":"0.0 t"}}]
[{"$nulls":3},"sélectionner ",null,{"v":460,"d":"460 kg/m³"},{"$f":"C71*F71/1000","v":{"v":0,"d":"0.0 t"}}]
[{"$nulls":3},"sélectionner ",null,{"v":460,"d":"460 kg/m³"},{"$f":"C72*F72/1000","v":{"v":0,"d":"0.0 t"}}]
[{"$nulls":6},{"$f":"SUM(G65:G67)","v":{"v":0,"d":"0.0"}}]
["Cuisine(s)",null,{"$f":"SUM(C75:C77)","v":{"v":0,"d":"0.00 m³"}},{"$f":"SUMIF(D75:D77,\"oui\",C75:C77)","v":{"v":0,"d":"0.00 m³"}},{"$f":"IF(C74=0,0,D74/C74)","v":{"v":0,"d":"0.0%"}},{"$f":"(C75*F75+C76*F76+C77*F77)/1000","v":0},{"$f":"IF(F74=0,0,(SUMIF(D75:D77,\"oui\",G75:G77))/(F74))","v":{"v":0,"d":"0.0%"}}]
[{"$nulls":3},"sélectionner ",null,{"v":460,"d":"460 kg/m³"},{"$f":"C75*F75/1000","v":{"v":0,"d":"0.0 t"}}]
[{"$nulls":3},"sélectionner ",null,{"v":460,"d":"460 kg/m³"},{"$f":"C76*F76/1000","v":{"v":0,"d":"0.0 t"}}]
[{"$nulls":3},"sélectionner ",null,{"v":460,"d":"460 kg/m³"},{"$f":"C77*F77/1000","v":{"v":0,"d":"0.0 t"}}]
[{"$nulls":6},{"$f":"SUM(G75:G77)","v":{"v":0,"d":"0.0"}}]
["Armoires encastrées ",null,{"$f":"SUM(C80:C82)","v":{"v":0,"d":"0.00 m³"}},{"$f":"SUMIF(D80:D82,\"oui\",C80:C82)","v":{"v":0,"d":"0.00 m³"}},{"$f":"IF(C79=0,0,D79/C79)","v":{"v":0,"d":"0.0%"}},{"$f":"(C80*F80+C81*F81+C82*F82)/1000","v":0},{"$f":"IF(F79=0,0,(SUMIF(D80:D82,\"oui\",G80:G82))/(F79))","v":{"v":0,"d":"0.0%"}}]
[{"$nulls":3},"sélectionner ",null,{"v":460,"d":"460 kg/m³"},{"$f":"C80*F80/1000","v":{"v":0,"d":"0.0 t"}}]
[{"$nulls":3},"sélectionner ",null,{"v":460,"d":"460 kg/m³"},{"$f":"C81*F81/1000","v":{"v":0,"d":"0.0 t"}}]
[{"$nulls":3},"sélectionner ",null,{"v":460,"d":"460 kg/m³"},{"$f":"C82*F82/1000","v":{"v":0,"d":"0.0 t"}}]
[{"$nulls":6},{"$f":"SUM(G80:G82)","v":{"v":0,"d":"0.0"}}]
["Autre:",null,{"$f":"SUM(C85:C87)","v":{"v":0,"d":"0.00 m³"}},{"$f":"SUMIF(D85:D87,\"oui\",C85:C87)","v":{"v":0,"d":"0.00 m³"}},{"$f":"IF(C84=0,0,D84/C84)","v":{"v":0,"d":"0.0%"}},{"$f":"(C85*F85+C86*F86+C87*F87)/1000","v":0},{"$f":"IF(F84=0,0,(SUMIF(D85:D87,\"oui\",G85:G87))/(F84))","v":{"v":0,"d":"0.0%"}}]
[{"$nulls":3},"sélectionner ",null,{"v":460,"d":"460 kg/m³"},{"$f":"C85*F85/1000","v":{"v":0,"d":"0.0 t"}}]
[{"$nulls":3},"sélectionner ",null,{"v":460,"d":"460 kg/m³"},{"$f":"C86*F86/1000","v":{"v":0,"d":"0.0 t"}}]
[{"$nulls":3},"sélectionner ",null,{"v":460,"d":"460 kg/m³"},{"$f":"C87*F87/1000","v":{"v":0,"d":"0.0 t"}}]
[{"$nulls":6},{"$f":"SUM(G85:G87)","v":{"v":0,"d":"0.0"}}]
["Autre:",null,{"$f":"SUM(C90:C92)","v":{"v":0,"d":"0.00 m³"}},{"$f":"SUMIF(D90:D92,\"oui\",C90:C92)","v":{"v":0,"d":"0.00 m³"}},{"$f":"IF(C89=0,0,D89/C89)","v":{"v":0,"d":"0.0%"}},{"$f":"(C90*F90+C91*F91+C92*F92)/1000","v":0},{"$f":"IF(F89=0,0,(SUMIF(D90:D92,\"oui\",G90:G92))/(F89))","v":{"v":0,"d":"0.0%"}}]
[{"$nulls":3},"sélectionner ",null,{"v":460,"d":"460 kg/m³"},{"$f":"C90*F90/1000","v":{"v":0,"d":"0.0 t"}}]
[{"$nulls":3},"sélectionner ",null,{"v":460,"d":"460 kg/m³"},{"$f":"C91*F91/1000","v":{"v":0,"d":"0.0 t"}}]
[{"$nulls":3},"sélectionner ",null,{"v":460,"d":"460 kg/m³"},{"$f":"C92*F92/1000","v":{"v":0,"d":"0.0 t"}}]
[{"$nulls":6},{"$f":"SUM(G90:G92)","v":{"v":0,"d":"0.0"}}]
["Isolation (facultative - cf. consignes)",null,{"$f":"SUM(C95:C97)","v":{"v":0,"d":"0.00 m³"}},{"$f":"SUMIF(D95:D97,\"oui\",C95:C97)","v":{"v":0,"d":"0.00 m³"}},{"$f":"IF(C94=0,0,D94/C94)","v":{"v":0,"d":"0.0%"}},{"$f":"(C95*F95+C96*F96+C97*F97)/1000","v":0},{"$f":"IF(F94=0,0,(SUMIF(D95:D97,\"oui\",G95:G97))/(F94))","v":{"v":0,"d":"0.0%"}}]
[{"$nulls":3},"sélectionner ",null,{"v":460,"d":"460 kg/m³"},{"$f":"C95*F95/1000","v":{"v":0,"d":"0.0 t"}}]
[{"$nulls":3},"sélectionner ",null,{"v":460,"d":"460 kg/m³"},{"$f":"C96*F96/1000","v":{"v":0,"d":"0.0 t"}}]
[{"$nulls":3},"sélectionner ",null,{"v":460,"d":"460 kg/m³"},{"$f":"C97*F97/1000","v":{"v":0,"d":"0.0 t"}}]
[]
[null,null,"Bois mis en œuvre","Bois labellisé suisse \nen m3",null,"en tonnes"]
["TOTAL DE L'OBJET",null,{"$f":"C94+C89+C84+C79+C74+C69+C64+C59+C54+C49+C42+C35+C28+C21+C14","v":{"v":0,"d":"0.00 m³"}},{"$f":"D94+D89+D84+D79+D74+D69+D64+D59+D54+D49+D42+D35+D28+D21+D14","v":{"v":0,"d":"0.00 m³"}},{"$f":"IF(C100=0,0,(C14*E14+C21*E21+C28*E28+C35*E35+C42*E42+C49*E49+C54*E54+C59*E59+C64*E64+C69*E69+C74*E74+C79*E79+C84*E84+C89*E89+C94*E94)/C100)","v":{"v":0,"d":"0.0%"}},{"$f":"F94+F89+F84+F79+F74+F69+F64+F59+F54+F49+F42+F35+F28+F21+F14","v":{"v":0,"d":"0.00 t"}},{"$f":"IF(F100=0,0,(F94*G94+F89*G89+F84*G84+F79*G79+F74*G74+F69*G69+F64*G64+F59*G59+F54*G54+F49*G49+F42*G42+F35*G35+F28*G28+F21*G21+F14*G14)/F100)","v":{"v":0,"d":"0.0%"}},null,null,"Remarques générales [auditeur]"]
[]
["Le/la soussigné/e confirme la véracité et l'exhaustivité des présentes données. Il/elle accepte que les éventuels frais supplémentaires liés à des données érronnées seront supportés par la personne ou l'entreprise requérante.  "]
[]
[]
["Lieu, date",{"$nulls":4},"Lorsque la masse volumique d'un matériau n'est pas connue, "]
["Timbre et signature",{"$nulls":4},"le calcul peut être fait au moyen des valeurs suivantes :"]
[]
[{"$nulls":5},{"v":460,"d":"460 kg/m³"},"Epicéa / sapin / pin"]
[{"$nulls":5},{"v":580,"d":"580 kg/m³"},"Mélèze"]
[{"$nulls":5},{"v":680,"d":"680 kg/m³"},"Hêtre / chêne / frêne"]
[{"$nulls":5},{"v":660,"d":"660 kg/m³"},"Panneau de particule / MDF / OSB"]
[{"$nulls":5},{"v":140,"d":"140 kg/m³"},"Panneau d'isolation en fibre de bois",null,null,"Bilan contrôlé et validé par:"]
[{"$nulls":5},{"v":1,"d":"1 kg/m³"},"Autre 1"]
[{"$nulls":5},{"v":2,"d":"2 kg/m³"},"Autre 2"]
[{"$nulls":5},{"v":3,"d":"3 kg/m³"},"Autre 3",null,null,"Nom, prénom",null,"Date"]